fUST/lending_fUST_20250530
["ID","MTS","AMOUNT","RATE_DAILY","PERIOD"]
[363080449,1748570951693,-500.0,0.00017878,2]
[363080450,1748570951716,-500.0,0.00017878,2]
[363080451,1748570951896,-500.0,0.00017878,2]
[363080452,1748570951919,-500.0,0.00017878,2]
[363080453,1748570951941,-500.0,0.00017878,2]
[363080454,1748570951963,-500.0,0.00017878,2]
[363080455,1748570951985,-355.63168964,0.00017878,2]
[363080456,1748570952011,-500.0,0.00017878,2]
[363080457,1748570952032,-500.0,0.00017878,2]
[363080458,1748570952054,-500.0,0.00017878,2]
[363080459,1748570952077,-500.0,0.00017878,2]
[363080460,1748570952099,-500.0,0.00017878,2]
[363080461,1748570952121,-500.0,0.00017878,2]
[363080462,1748570952142,-588.25502468,0.00017878,2]
[363080463,1748570952166,-500.0,0.00017878,2]
[363080464,1748570952193,-500.0,0.00017878,2]
[363080465,1748570952214,-500.0,0.00017878,2]
[363080466,1748570952235,-500.0,0.00017878,2]
[363080467,1748570952256,-500.0,0.00017878,2]
[363080468,1748570952280,-500.0,0.00017878,2]
[363080469,1748570952301,-500.0,0.00017878,2]
[363080470,1748570952322,-1200.0,0.00017879,2]
[363080471,1748570952343,-751.0023886,0.0001788,2]
[363080472,1748570952367,-2323.97,0.00017892,2]
[363080473,1748570952387,-300.0,0.00018007,2]
[363080474,1748570952407,-2978.2690584,0.0001801,2]
[363080475,1748570952428,-689.3809104,0.00018074,2]
[363080476,1748570952449,-6612.74733911,0.00018074,2]
[363080477,1748570952469,-1070.43381822,0.00018102,2]
[363080479,1748570968482,269.1,0.00013914,2]
[363080480,1748570969057,538.19,0.00014576,2]
[363080481,1748570969347,807.29,0.00015239,2]
[363080482,1748570969770,1076.39,0.00015901,2]
[363080483,1748570971586,-1164.32688987,0.00016564,2]
[363080485,1748571017889,1129.337413,0.00013699,2]
[363080529,1748571031830,-673.75203956,0.000161,2]
[363080531,1748571031840,-181.15311013,0.00016564,2]
[363080533,1748571031849,-1614.58,0.00017226,2]
[363080534,1748571031859,-1883.67,0.00017889,2]
[363080536,1748571031869,-1200.0,0.0001792,2]
[363080538,1748571031879,-212.93939327,0.00017921,2]
[363080539,1748571031891,-4787.06060673,0.00017921,2]
[363080540,1748571031901,-178.3307581,0.00018007,2]
[363080542,1748571031912,-773.32078238,0.00018102,2]
[363080544,1748571031922,-160.0,0.00018382,2]
[363080546,1748571031932,-300.0,0.00018463,2]
[363080548,1748571031942,-300.0,0.00018464,2]
[363080550,1748571031952,-300.0,0.00018464,2]
[363080552,1748571031962,-300.0,0.00018464,2]
[363080554,1748571031972,-716.614593,0.00018465,2]
[363080556,1748571031982,-2152.77,0.00018552,2]
[363080558,1748571031993,-255.09630614,0.00018699,2]
[363080560,1748571032003,-1563.86602974,0.000189,2]
[363080561,1748571032012,-336.05820582,0.00019072,2]
[363080563,1748571032022,-14852.8413925,0.00019106,2]
[363080567,1748571032051,-90548.1151375,0.00019106,2]
[363080569,1748571032061,-50000.0,0.00019107,2]
[363080571,1748571032072,-1563.86602974,0.00019107,2]
[363080573,1748571032082,-290.23,0.00019168,3]
[363080575,1748571032091,-870.72,0.00019168,3]
[363080577,1748571032101,-543.62270493,0.00019173,2]
[363080579,1748571032111,-537.978401,0.00019173,2]
[363080581,1748571032120,-503.39614553,0.00019173,2]
[363080583,1748571032130,-500.74168539,0.00019173,2]
[363080585,1748571032139,-500.0,0.00019173,2]
[363080587,1748571032148,-500.0,0.00019173,2]
[363080589,1748571032157,-499.72051622,0.00019173,2]
[363080591,1748571032167,-504.44410588,0.00019173,2]
[363080593,1748571032177,-500.0,0.00019177,2]
[363080595,1748571032187,-500.0,0.00019177,2]
[363080597,1748571032197,-175.90319758,0.00019177,2]
[363080599,1748571032207,-153.6854704,0.00019177,2]
[363080601,1748571032218,-244.95162009,0.00019177,2]
[363080603,1748571032227,-430.0,0.00019178,2]
[363080605,1748571032237,-430.0,0.00019178,2]
[363080607,1748571032248,-360.0,0.00019178,2]
[363080609,1748571032258,-431.6435348,0.00019178,2]
[363080611,1748571032268,-430.86201386,0.00019178,2]
[363080613,1748571032277,-373.17082275,0.00019178,2]
[363080615,1748571032287,-430.0,0.00019178,2]
[363080617,1748571032299,-462.94665613,0.00019178,2]
[363080619,1748571032309,-430.61544949,0.00019178,2]
[363080621,1748571032319,-500.0,0.00019178,2]
[363080623,1748571032328,-500.0,0.00019178,2]
[363080625,1748571032339,-500.0,0.00019178,2]
[363080627,1748571032349,-500.0,0.00019178,2]
[363080629,1748571032358,-500.0,0.00019178,2]
[363080631,1748571032368,-500.0,0.00019178,2]
[363080633,1748571032380,-500.0,0.00019178,2]
[363080635,1748571032390,-500.0,0.00019178,2]
[363080637,1748571032399,-500.0,0.00019178,2]
[363080639,1748571032408,-500.0,0.00019178,2]
[363080641,1748571032418,-402.38372564,0.00019178,2]
[363080643,1748571032429,-392.66467029,0.00019178,2]
[363080644,1748571032439,-431.30068558,0.00019178,2]
[363080645,1748571032448,-503.05674811,0.00019178,2]
[363080646,1748571032457,-432.08561147,0.00019178,2]
[363080647,1748571032467,-433.21777421,0.00019178,2]
[363080648,1748571032477,-401.30914915,0.00019178,2]
[363080649,1748571032486,-433.3692508,0.00019178,2]
[363080650,1748571032500,-430.64355171,0.00019178,2]
[363080651,1748571032509,-431.55656656,0.00019178,2]
[363080652,1748571032519,-430.58848605,0.00019178,2]
[363080653,1748571032528,-431.92175836,0.00019178,2]
[363080654,1748571032538,-433.1389574,0.00019178,2]
[363080655,1748571032547,-453.37927462,0.00019178,2]
[363080656,1748571032557,-437.6208347,0.00019178,2]
[363080657,1748571032566,-432.64834782,0.00019178,2]
[363080658,1748571032575,-432.55684236,0.00019178,2]
[363080659,1748571032584,-433.1164554,0.00019178,2]
[363080660,1748571032594,-434.74509874,0.00019178,2]
[363080661,1748571032604,-166.55588737,0.00019178,2]
[363080662,1748571032613,-433.60148845,0.00019178,2]
[363080663,1748571032622,-431.01237194,0.00019178,2]
[363080664,1748571032632,-432.83378674,0.00019178,2]
[363080665,1748571032641,-432.2820614,0.00019178,2]
[363080666,1748571032651,-436.71370127,0.00019178,2]
[363080667,1748571032660,-438.14059621,0.00019178,2]
[363080668,1748571032669,-462.60591604,0.00019178,2]
[363080669,1748571032678,-434.67815842,0.00019178,2]
[363080670,1748571032688,-405.33100362,0.00019178,2]
[363080671,1748571032698,-432.21887141,0.00019178,2]
[363080672,1748571032707,-433.05136075,0.00019178,2]
[363080673,1748571032716,-430.76000973,0.00019178,2]
[363080674,1748571032726,-433.20078369,0.00019178,2]
[363080675,1748571032735,-430.9327864,0.00019178,2]
[363080676,1748571032746,-433.51778873,0.00019178,2]
[363080677,1748571032756,-430.0,0.00019178,2]
[363080678,1748571032765,-430.0,0.00019178,2]
[363080679,1748571032775,-333.25317684,0.00019178,2]
[363080680,1748571032786,-430.0,0.00019178,2]
[363080681,1748571032795,-430.0,0.00019178,2]
[363080682,1748571032804,-435.25210393,0.00019178,2]
[363080683,1748571032814,-431.60912578,0.00019178,2]
[363080684,1748571032823,-430.0,0.00019178,2]
[363080685,1748571032832,-383.29275223,0.00019178,2]
[363080686,1748571032842,-525.27570494,0.00019178,2]
[363080687,1748571032851,-430.0,0.00019178,2]
[363080688,1748571032861,-430.0,0.00019178,2]
[363080689,1748571032870,-426.29459088,0.00019178,2]
[363080690,1748571032881,-430.0,0.00019178,2]
[363080691,1748571032891,-403.68112001,0.00019178,2]
[363080692,1748571032900,-430.0,0.00019178,2]
[363080693,1748571032910,-445.1234149,0.00019178,2]
[363080694,1748571032919,-430.0,0.00019178,2]
[363080695,1748571032929,-235.89594403,0.00019178,2]
[363080696,1748571032938,-497.89673747,0.00019178,2]
[363080697,1748571032948,-251.80375819,0.00019178,2]
[363080698,1748571032957,-430.0,0.00019178,2]
[363080699,1748571032967,-433.783122,0.00019178,2]
[363080700,1748571032976,-430.0,0.00019178,2]
[363080701,1748571032985,-433.0561095,0.00019178,2]
[363080702,1748571032997,-438.03462443,0.00019178,2]
[363080703,1748571033006,-430.0,0.00019178,2]
[363080704,1748571033016,-404.12409939,0.00019178,2]
[363080705,1748571033025,-430.0,0.00019178,2]
[363080706,1748571033035,-401.27599599,0.00019178,2]
[363080707,1748571033046,-430.0,0.00019178,2]
[363080708,1748571033057,-455.95814639,0.00019178,2]
[363080709,1748571033068,-439.73994082,0.00019178,2]
[363080710,1748571033078,-173.96694167,0.00019178,2]
[363080715,1748571037476,185.92,0.00014563,2]
[363080728,1748571037833,278.88,0.00015225,2]
[363080730,1748571037846,-4268.76274427,0.00018986,2]
[363080735,1748571037882,-731.23725573,0.00018986,2]
[363080737,1748571037891,-84.57626875,0.00019178,2]
[363080743,1748571037935,-173.1419023,0.00019178,2]
[363080744,1748571037944,-316.50850186,0.00019178,2]
[363080747,1748571037954,-430.0,0.00019178,2]
[363080750,1748571037964,-430.0,0.00019178,2]
[363080751,1748571037973,-430.0,0.00019178,2]
[363080753,1748571037982,-435.66764006,0.00019178,2]
[363080755,1748571037991,-430.0,0.00019178,2]
[363080758,1748571038002,-400.94730473,0.00019178,2]
[363080760,1748571038012,-444.05976516,0.00019178,2]
[363080763,1748571038022,-434.59414679,0.00019178,2]
[363080765,1748571038031,-436.46339701,0.00019178,2]
[363080767,1748571038040,-433.51664198,0.00019178,2]
[363080769,1748571038050,-387.38390484,0.00019178,2]
[363080771,1748571038059,-406.73436681,0.00019178,2]
[363080773,1748571038069,-364.57988182,0.00019178,2]
[363080775,1748571038078,-450.27961661,0.00019178,2]
[363080777,1748571038087,-430.0,0.00019178,2]
[363080779,1748571038096,-1036.21159363,0.00019178,2]
[363080781,1748571038107,-430.0,0.00019178,2]
[363080783,1748571038116,-430.0,0.00019178,2]
[363080785,1748571038125,-433.50910289,0.00019178,2]
[363080787,1748571038134,-430.0,0.00019178,2]
[363080789,1748571038143,-431.37627933,0.00019178,2]
[363080791,1748571038153,-431.70320607,0.00019178,2]
[363080793,1748571038162,-432.36810429,0.00019178,2]
[363080795,1748571038171,-435.39891299,0.00019178,2]
[363080797,1748571038181,-430.0,0.00019178,2]
[363080799,1748571038190,-434.13742217,0.00019178,2]
[363080801,1748571038199,-430.0,0.00019178,2]
[363080803,1748571038208,-182.20171623,0.00019178,2]
[363080805,1748571038218,-436.68632824,0.00019178,2]
[363080807,1748571038227,-430.0,0.00019178,2]
[363080809,1748571038237,-433.55569647,0.00019178,2]
[363080811,1748571038247,-439.96187204,0.00019178,2]
[363080813,1748571038255,-256.23193931,0.00019178,2]
[363080815,1748571038264,-430.0,0.00019178,2]
[363080817,1748571038273,-434.56068407,0.00019178,2]
[363080819,1748571038282,-430.0,0.00019178,2]
[363080821,1748571038292,-430.0,0.00019178,2]
[363080823,1748571038305,-430.0,0.00019178,2]
[363080825,1748571038315,-433.68919466,0.00019178,2]
[363080827,1748571038324,-435.18885065,0.00019178,2]
[363080829,1748571038334,-430.0,0.00019178,2]
[363080831,1748571038345,-400.96560716,0.00019178,2]
[363080833,1748571038355,-430.0,0.00019178,2]
[363080835,1748571038366,-430.0,0.00019178,2]
[363080837,1748571038377,-437.36649993,0.00019178,2]
[363080839,1748571038386,-430.0,0.00019178,2]
[363080841,1748571038395,-500.0,0.00019178,2]
[363080843,1748571038405,-434.51089194,0.00019178,2]
[363080845,1748571038414,-430.0,0.00019178,2]
[363080847,1748571038424,-430.0,0.00019178,2]
[363080849,1748571038433,-433.88700357,0.00019178,2]
[363080851,1748571038443,-592.41,0.00019178,2]
[363080853,1748571038452,-430.0,0.00019178,2]
[363080855,1748571038461,-436.21028794,0.00019178,2]
[363080857,1748571038471,-436.06356474,0.00019178,2]
[363080859,1748571038480,-430.0,0.00019178,2]
[363080861,1748571038489,-430.96709121,0.00019178,2]
[363080863,1748571038500,-435.00638866,0.00019178,2]
[363080865,1748571038510,-432.34511818,0.00019178,2]
[363080867,1748571038519,-430.0,0.00019178,2]
[363080870,1748571038531,-404.04025742,0.00019178,2]
[363080872,1748571038547,-430.0,0.00019178,2]
[363080875,1748571038561,-430.0,0.00019178,2]
[363080878,1748571038578,-327.00312857,0.00019178,2]
[363080880,1748571038589,-432.24671428,0.00019178,2]
[363080882,1748571038602,-430.0,0.00019178,2]
[363080885,1748571038616,-503.32879812,0.00019178,2]
[363080887,1748571038629,-430.0,0.00019178,2]
[363080890,1748571038643,-430.0,0.00019178,2]
[363080892,1748571038656,-430.0,0.00019178,2]
[363080895,1748571038670,-215.95259485,0.00019178,2]
[363080897,1748571038684,-430.0,0.00019178,2]
[363080900,1748571038697,-430.0,0.00019178,2]
[363080902,1748571038710,-451.73907989,0.00019178,2]
[363080904,1748571038722,-404.00884768,0.00019178,2]
[363080907,1748571038735,-430.0,0.00019178,2]
[363080909,1748571038749,-433.16910795,0.00019178,2]
[363080911,1748571038761,-430.0,0.00019178,2]
[363080914,1748571038773,-433.12165588,0.00019178,2]
[363080916,1748571038784,-430.0,0.00019178,2]
[363080918,1748571038797,-435.37416964,0.00019178,2]
[363080920,1748571038809,-431.31351131,0.00019178,2]
[363080923,1748571038822,-430.0,0.00019178,2]
[363080925,1748571038835,-431.94782042,0.00019178,2]
[363080928,1748571038848,-458.76,0.00019178,2]
[363080930,1748571038863,-536.84628455,0.00019178,2]
[363080933,1748571038878,-432.44759318,0.00019178,2]
[363080934,1748571038891,-430.0,0.00019178,2]
[363080935,1748571038902,-433.75345839,0.00019178,2]
[363080936,1748571038912,-430.0,0.00019178,2]
[363080937,1748571038923,-435.48582376,0.00019178,2]
[363080938,1748571038936,-430.0,0.00019178,2]
[363080939,1748571038950,-351.03990764,0.00019178,2]
[363080940,1748571038963,-435.65849783,0.00019178,2]
[363080941,1748571038974,-435.70742338,0.00019178,2]
[363080942,1748571038986,-401.17777455,0.00019178,2]
[363080943,1748571038999,-430.1017484,0.00019178,2]
[363080944,1748571039012,-382.26757396,0.00019178,2]
[363080945,1748571039023,-430.0,0.00019178,2]
[363080946,1748571039034,-430.0,0.00019178,2]
[363080947,1748571039045,-404.37876923,0.00019178,2]
[363080948,1748571039056,-430.0,0.00019178,2]
[363080949,1748571039067,-430.0,0.00019178,2]
[363080950,1748571039079,-434.14499406,0.00019178,2]
[363080951,1748571039091,-430.0,0.00019178,2]
[363080952,1748571039101,-453.07188305,0.00019178,2]
[363080953,1748571039111,-430.0,0.00019178,2]
[363080954,1748571039123,-433.77440942,0.00019178,2]
[363080955,1748571039134,-430.0,0.00019178,2]
[363080956,1748571039145,-221.3148485,0.00019178,2]
[363080958,1748571039162,-208.6851515,0.00019178,2]
[363080960,1748571039174,-430.62886292,0.00019178,2]
[363080962,1748571039186,-430.0,0.00019178,2]
[363080964,1748571039199,-435.71138191,0.00019178,2]
[363080967,1748571039210,-435.0490595,0.00019178,2]
[363080969,1748571039222,-435.744024,0.00019178,2]
[363080971,1748571039233,-151.16806051,0.00019178,2]
[363080973,1748571039245,-435.12742723,0.00019178,2]
[363080975,1748571039258,-429.02987421,0.00019178,2]
[363080978,1748571039273,-25.50709049,0.00019178,2]
[363080980,1748571039285,-386.78851806,0.00019178,2]
[363080983,1748571039300,-43.21148194,0.00019178,2]
[363080985,1748571039312,-430.0,0.00019178,2]
[363080987,1748571039324,-430.0,0.00019178,2]
[363080989,1748571039338,-484.89868782,0.00019178,2]
[363080992,1748571039351,-239.71011522,0.00019178,2]
[363080994,1748571039362,-430.0,0.00019178,2]
[363080996,1748571039374,-434.3398338,0.00019178,2]
[363080998,1748571039388,-433.17459666,0.00019178,2]
[363081001,1748571039399,-66.87405276,0.00019178,2]
[363081007,1748571039450,371.84,0.00015887,2]
[363081068,1748571040028,-464.8,0.00016549,2]
[363081070,1748571040038,-454.27650345,0.00017211,2]
[363081115,1748571040459,-20.69140067,0.00017211,2]
[363081125,1748571040549,-82.79209588,0.00017211,2]
[363081127,1748571040559,-650.72,0.00017872,2]
[363081129,1748571040569,-743.68,0.00018534,2]
[363081131,1748571040578,-363.12594724,0.00019178,2]
[363081133,1748571040587,-252.52764934,0.00019178,2]
[363081135,1748571040597,-174.59281113,0.00019178,2]
[363081137,1748571040606,-430.0,0.00019178,2]
[363081139,1748571040616,-324.77558527,0.00019178,2]
[363081141,1748571040626,-430.0,0.00019178,2]
[363081143,1748571040635,-430.0,0.00019178,2]
[363081145,1748571040647,-430.0,0.00019178,2]
[363081147,1748571040657,-430.0,0.00019178,2]
[363081149,1748571040668,-437.36457735,0.00019178,2]
[363081151,1748571040677,-533.25271514,0.00019178,2]
[363081153,1748571040686,-430.0,0.00019178,2]
[363081155,1748571040695,-437.48407563,0.00019178,2]
[363081157,1748571040705,-430.0,0.00019178,2]
[363081159,1748571040715,-430.0,0.00019178,2]
[363081161,1748571040724,-430.0,0.00019178,2]
[363081163,1748571040734,-310.28662106,0.00019178,2]
[363081165,1748571040744,-430.0,0.00019178,2]
[363081167,1748571040757,-430.0,0.00019178,2]
[363081169,1748571040766,-435.22155021,0.00019178,2]
[363081171,1748571040776,-430.0,0.00019178,2]
[363081173,1748571040786,-430.0,0.00019178,2]
[363081174,1748571040796,-433.37947951,0.00019178,2]
[363081176,1748571040805,-430.0,0.00019178,2]
[363081179,1748571040816,-430.0,0.00019178,2]
[363081180,1748571040826,-430.0,0.00019178,2]
[363081183,1748571040836,-430.0,0.00019178,2]
[363081184,1748571040845,-432.83403069,0.00019178,2]
[363081186,1748571040855,-430.0,0.00019178,2]
[363081189,1748571040865,-430.0,0.00019178,2]
[363081191,1748571040875,-403.88302314,0.00019178,2]
[363081193,1748571040884,-430.0,0.00019178,2]
[363081195,1748571040893,-430.0,0.00019178,2]
[363081197,1748571040903,-430.0,0.00019178,2]
[363081199,1748571040912,-430.0,0.00019178,2]
[363081201,1748571040921,-430.0,0.00019178,2]
[363081203,1748571040931,-430.0,0.00019178,2]
[363081205,1748571040940,-430.0,0.00019178,2]
[363081207,1748571040950,-244.35647337,0.00019178,2]
[363081385,1748571045005,-165.10035382,0.00019007,2]
[363081387,1748571045015,-300.0,0.00019177,2]
[363081388,1748571045024,-185.64352663,0.00019178,2]
[363081389,1748571045034,-432.57323111,0.00019178,2]
[363081390,1748571045043,-433.28626551,0.00019178,2]
[363081391,1748571045053,-430.0,0.00019178,2]
[363081392,1748571045063,-430.0,0.00019178,2]
[363081393,1748571045074,-430.0,0.00019178,2]
[363081394,1748571045084,-431.09440638,0.00019178,2]
[363081395,1748571045093,-430.0,0.00019178,2]
[363081396,1748571045103,-430.0,0.00019178,2]
[363081398,1748571045112,-430.0,0.00019178,2]
[363081400,1748571045122,-430.0,0.00019178,2]
[363081402,1748571045132,-441.03160255,0.00019178,2]
[363081404,1748571045142,-430.99262416,0.00019178,2]
[363081406,1748571045151,-437.02837876,0.00019178,2]
[363081408,1748571045161,-430.0,0.00019178,2]
[363081410,1748571045171,-430.0,0.00019178,2]
[363081412,1748571045180,-430.0,0.00019178,2]
[363081414,1748571045190,-430.0,0.00019178,2]
[363081416,1748571045199,-430.0,0.00019178,2]
[363081418,1748571045209,-430.0,0.00019178,2]
[363081420,1748571045219,-430.0,0.00019178,2]
[363081422,1748571045228,-430.0,0.00019178,2]
[363081424,1748571045238,-433.36578401,0.00019178,2]
[363081426,1748571045248,-481.1933872,0.00019178,2]
[363081428,1748571045258,-430.0,0.00019178,2]
[363081430,1748571045267,-430.0,0.00019178,2]
[363081432,1748571045277,-430.0,0.00019178,2]
[363081434,1748571045287,-430.0,0.00019178,2]
[363081437,1748571045297,-119.29853237,0.00019178,2]
[363081439,1748571045314,-310.70146763,0.00019178,2]
[363081441,1748571045323,-284.63482342,0.00019178,2]
[363081443,1748571045336,-145.36517658,0.00019178,2]
[363081445,1748571045347,-410.83716818,0.00019178,2]
[363081446,1748571045357,-214.34326414,0.00019178,2]
[363081447,1748571045366,-437.92477733,0.00019178,2]
[363081448,1748571045377,-430.0,0.00019178,2]
[363081449,1748571045388,-357.07189808,0.00019178,2]
[363081450,1748571045398,-430.0,0.00019178,2]
[363081451,1748571045408,-430.0,0.00019178,2]
[363081452,1748571045418,-430.0,0.00019178,2]
[363081453,1748571045428,-430.0,0.00019178,2]
[363081454,1748571045438,-360.03397275,0.00019178,2]
[363081455,1748571045449,-430.0,0.00019178,2]
[363081456,1748571045459,-433.70738245,0.00019178,2]
[363081457,1748571045468,-431.87010722,0.00019178,2]
[363081458,1748571045478,-430.0,0.00019178,2]
[363081459,1748571045487,-430.0,0.00019178,2]
[363081460,1748571045497,-340.0,0.00019178,2]
[363081461,1748571045506,-430.0,0.00019178,2]
[363081462,1748571045516,-430.0,0.00019178,2]
[363081463,1748571045526,-430.0,0.00019178,2]
[363081464,1748571045536,-430.0,0.00019178,2]
[363081465,1748571045545,-430.0,0.00019178,2]
[363081466,1748571045555,-477.49,0.00019178,2]
[363081467,1748571045564,-503.67631641,0.00019178,2]
[363081468,1748571045573,-430.0,0.00019178,2]
[363081469,1748571045583,-432.20978347,0.00019178,2]
[363081470,1748571045592,-430.0,0.00019178,2]
[363081471,1748571045601,-352.49351454,0.00019178,2]
[363081472,1748571045610,-430.0,0.00019178,2]
[363081473,1748571045619,-430.0,0.00019178,2]
[363081474,1748571045629,-430.0,0.00019178,2]
[363081475,1748571045638,-500.0,0.00019178,2]
[363081476,1748571045648,-500.0,0.00019178,2]
[363081477,1748571045657,-500.0,0.00019178,2]
[363081478,1748571045666,-537.03710224,0.00019178,2]
[363081479,1748571045676,-430.0,0.00019178,2]
[363081480,1748571045685,-430.0,0.00019178,2]
[363081481,1748571045695,-430.0,0.00019178,2]
[363081482,1748571045704,-430.0,0.00019178,2]
[363081483,1748571045714,-430.0,0.00019178,2]
[363081484,1748571045724,-430.0,0.00019178,2]
[363081485,1748571045733,-430.0,0.00019178,2]
[363081486,1748571045743,-430.0,0.00019178,2]
[363081487,1748571045754,-430.0,0.00019178,2]
[363081488,1748571045763,-430.0,0.00019178,2]
[363081489,1748571045773,-431.69200944,0.00019178,2]
[363081490,1748571045782,-431.34306222,0.00019178,2]
[363081491,1748571045792,-438.14077831,0.00019178,2]
[363081492,1748571045801,-977.09,0.00019178,2]
[363081494,1748571045811,-430.0,0.00019178,2]
[363081496,1748571045820,-430.0,0.00019178,2]
[363081498,1748571045831,-430.0,0.00019178,2]
[363081500,1748571045840,-236.68465088,0.00019178,2]
[363081502,1748571045849,-431.78736939,0.00019178,2]
[363081504,1748571045858,-430.0,0.00019178,2]
[363081506,1748571045868,-430.0,0.00019178,2]
[363081508,1748571045877,-430.0,0.00019178,2]
[363081510,1748571045887,-501.93153652,0.00019178,2]
[363081512,1748571045896,-430.0,0.00019178,2]
[363081514,1748571045905,-430.0,0.00019178,2]
[363081516,1748571045915,-432.41052935,0.00019178,2]
[363081518,1748571045924,-496.8768602,0.00019178,2]
[363081520,1748571045933,-430.0,0.00019178,2]
[363081522,1748571045943,-430.0,0.00019178,2]
[363081524,1748571045954,-430.0,0.00019178,2]
[363081526,1748571045963,-430.0,0.00019178,2]
[363081528,1748571045972,-430.0,0.00019178,2]
[363081530,1748571045982,-430.0,0.00019178,2]
[363081532,1748571045991,-430.0,0.00019178,2]
[363081533,1748571046001,-430.0,0.00019178,2]
[363081536,1748571046011,-430.0,0.00019178,2]
[363081538,1748571046021,-288.92065172,0.00019178,2]
[363081540,1748571046030,-335.12478526,0.00019178,2]
[363081542,1748571046039,-430.87611803,0.00019178,2]
[363081544,1748571046049,-500.0,0.00019178,2]
[363081546,1748571046058,-501.93651489,0.00019178,2]
[363081548,1748571046068,-430.0,0.00019178,2]
[363081550,1748571046078,-430.0,0.00019178,2]
[363081552,1748571046087,-430.0,0.00019178,2]
[363081554,1748571046096,-430.0,0.00019178,2]
[363081555,1748571046106,-430.0,0.00019178,2]
[363081557,1748571046115,-430.0,0.00019178,2]
[363081559,1748571046124,-430.0,0.00019178,2]
[363081561,1748571046133,-430.0,0.00019178,2]
[363081563,1748571046143,-1038.86,0.00019178,2]
[363081565,1748571046152,-430.0,0.00019178,2]
[363081567,1748571046161,-430.0,0.00019178,2]
[363081569,1748571046171,-431.08033008,0.00019178,2]
[363081571,1748571046180,-448.40283417,0.00019178,2]
[363081574,1748571046189,-430.0,0.00019178,2]
[363081576,1748571046199,-433.91687852,0.00019178,2]
[363081578,1748571046208,-430.0,0.00019178,2]
[363081581,1748571046218,-430.0,0.00019178,2]
[363081583,1748571046227,-430.0,0.00019178,2]
[363081585,1748571046236,-430.0,0.00019178,2]
[363081587,1748571046246,-430.0,0.00019178,2]
[363081589,1748571046257,-542.66,0.00019178,2]
[363081591,1748571046267,-430.0,0.00019178,2]
[363081593,1748571046276,-430.0,0.00019178,2]
[363081595,1748571046285,-510.88741724,0.00019178,2]
[363081597,1748571046295,-1451.44,0.00019178,2]
[363081599,1748571046307,-430.0,0.00019178,2]
[363081601,1748571046316,-432.4197623,0.00019178,2]
[363081603,1748571046325,-430.0,0.00019178,2]
[363081605,1748571046335,-299.77383822,0.00019178,2]
[363081634,1748571046632,-130.22616178,0.00019178,2]
[363081635,1748571046641,-272.65819284,0.00019178,2]
[363081636,1748571046651,-274.88600722,0.00019178,2]
[363081637,1748571046660,-430.0,0.00019178,2]
[363081638,1748571046669,-232.65835944,0.00019178,2]
[363081639,1748571046678,-430.0,0.00019178,2]
[363081640,1748571046687,-430.5134308,0.00019178,2]
[363081641,1748571046696,-430.0,0.00019178,2]
[363081642,1748571046705,-433.58822337,0.00019178,2]
[363081643,1748571046714,-430.0,0.00019178,2]
[363081644,1748571046723,-430.0,0.00019178,2]
[363081645,1748571046732,-430.0,0.00019178,2]
[363081646,1748571046740,-338.90331529,0.00019178,2]
[363081647,1748571046750,-430.0,0.00019178,2]
[363081648,1748571046759,-430.0,0.00019178,2]
[363081649,1748571046767,-430.0,0.00019178,2]
[363081650,1748571046776,-430.0,0.00019178,2]
[363081651,1748571046785,-430.0,0.00019178,2]